bitfinex/quotes_SOLUSD_20250212
["timestamp","ask_amount","ask_price","bid_price","bid_amount"]
[1739372500820,28.88970541,193.05,193.04,1.0]
[1739372500991,0.64349,193.05,193.04,1.0]
[1739372501406,29.01519541,193.05,193.04,1.0]
[1739372501604,0.37647,193.04,193.02,1.0]
[1739372501793,48.37170541,193.03,193.02,1.0]
[1739372502113,20.0,193.03,193.02,1.0]
[1739372502295,28.37170541,193.05,193.03,1.0]
[1739372502494,28.37170541,193.05,193.04,1.0]
[1739372502807,28.49719541,193.05,193.03,1.0]
[1739372503011,20.37647,193.01,193.0,1.0]
[1739372503186,42.16002394,193.01,192.98,62.67674044]
[1739372503390,28.49719541,192.99,192.98,63.67674044]
[1739372503616,0.12549,192.99,192.98,63.67674044]
[1739372503910,28.37170541,193.03,193.01,1.0]
[1739372504108,28.37170541,193.04,193.03,1.0]
[1739372504411,28.88970541,193.05,193.04,1.0]
[1739372504595,29.01519541,193.05,193.04,1.0]
[1739372505316,28.49719541,193.1,193.09,1.0]
[1739372505317,0.5178,193.1,193.09,1.0]
[1739372505609,0.5808,193.11,193.1,1.0]
[1739372505919,0.5808,193.11,193.09,1.0]
[1739372505920,20.37647,193.1,193.09,1.0]
[1739372506108,20.37647,193.1,193.03,6.377]
[1739372506109,20.37647,193.09,193.08,1.0]
[1739372506293,20.12549,193.09,193.08,1.0]
[1739372506702,20.0,193.09,193.08,1.0]
[1739372507313,58.40629901,193.11,193.08,28.37170541]
[1739372507483,58.40629901,193.11,193.06,28.37170541]
[1739372507833,10.55348794,193.09,193.07,28.37170541]
[1739372508003,10.55348794,193.09,193.08,28.37170541]
[1739372508692,10.55348794,193.09,193.04,1.0]
[1739372508693,10.55348794,193.09,193.06,28.37170541]
[1739372508894,47.85281107,193.11,193.06,28.37170541]
[1739372508895,88.68098139,193.08,193.06,28.37170541]
[1739372509095,88.68098139,193.08,193.05,28.37170541]
[1739372509713,88.68098139,193.08,193.04,28.37170541]
[1739372509926,88.68098139,193.08,193.05,28.37170541]
[1739372510327,28.37170541,193.07,193.0,28.37170541]
[1739372510499,28.37170541,193.06,193.0,28.37170541]
[1739372510819,84.40006574,193.07,193.02,28.37170541]
[1739372511024,112.77177115,193.07,193.0,28.37170541]
[1739372511322,28.37170541,193.03,192.98,70.90624044]
[1739372511506,10.55348794,193.05,192.98,70.90624044]
[1739372511887,10.55348794,193.05,193.0,1.0]
[1739372512091,10.55348794,193.05,192.99,2.12549]
[1739372512320,10.55348794,193.05,193.04,28.37170541]
[1739372512491,10.55348794,193.05,193.01,28.37170541]
[1739372512688,3.52048053,193.04,193.02,10.35259571]
[1739372512895,10.55348794,193.04,192.98,99.27794585]
[1739372513297,0.25098,193.02,192.98,62.67674044]
[1739372513514,28.62268541,193.02,192.98,62.67674044]
[1739372514016,10.55348794,193.03,192.98,91.04844585]
[1739372514217,28.88970541,193.05,192.98,91.04844585]
[1739372514218,10.55348794,193.01,192.99,28.37170541]
[1739372514397,10.55348794,193.01,193.0,28.37170541]
[1739372514810,10.55348794,193.01,193.0,33.55300541]
[1739372515023,10.55348794,193.01,193.0,28.37170541]
[1739372515219,10.55348794,193.01,192.98,91.04844585]
[1739372515399,0.25098,193.01,192.98,62.67674044]
[1739372515594,45.01368047,193.02,192.98,62.67674044]
[1739372515791,16.64197506,193.02,192.98,62.67674044]
[1739372515991,16.12397506,193.02,192.99,28.37170541]
[1739372516217,16.12397506,193.02,192.98,62.67674044]
[1739372516218,16.12397506,193.02,193.01,28.37170541]
[1739372516390,32.24795013,193.05,193.01,28.37170541]
[1739372516591,32.24795013,193.05,193.02,28.37170541]
[1739372516795,32.24795013,193.05,193.04,28.37170541]
[1739372517441,32.24795013,193.05,193.04,29.89500541]
[1739372517622,32.24795013,193.05,193.04,35.93020541]
[1739372518493,32.24795013,193.05,193.04,37.05569541]
[1739372518721,59.78056298,193.07,193.06,21.0]
[1739372518909,59.78056298,193.07,193.06,55.67689541]
[1739372519110,59.78056298,193.07,193.06,54.67689541]
[1739372519506,59.78056298,193.07,193.06,28.37170541]
[1739372519911,59.78056298,193.07,193.05,33.55160541]
[1739372520223,59.78056298,193.07,193.06,28.37170541]
[1739372520728,59.78056298,193.07,193.03,33.55200541]
[1739372521036,88.67016839,193.07,193.0,35.05470541]
[1739372521198,60.29846298,193.07,193.0,0.03]
[1739372521402,0.25098,193.06,193.0,0.03]
[1739372521614,28.37170541,193.04,193.0,0.03]
[1739372521816,28.62268541,193.03,193.0,0.03]
[1739372522202,62.16002394,193.01,193.0,0.03]
[1739372522927,28.37170541,193.05,193.0,0.03]
[1739372523097,0.518,193.04,193.0,0.03]
[1739372523299,0.25098,193.05,193.0,28.40170541]
[1739372523518,0.76888,193.06,193.01,28.37170541]
[1739372523710,0.76888,193.06,193.0,28.40170541]
[1739372523912,0.25098,193.04,193.0,0.03]
[1739372524097,28.74817541,193.01,193.0,0.03]
[1739372524301,42.28551394,193.01,193.0,0.03]
[1739372524914,71.17531935,193.01,193.0,0.03]
[1739372525115,79.09641935,193.01,193.0,0.03]
[1739372525902,13.91380853,192.99,192.98,62.67674044]
[1739372526106,42.28551394,192.99,192.98,62.67674044]
[1739372526333,20.50196,192.95,192.92,0.063]
[1739372526630,42.28551394,192.93,192.92,0.063]
[1739372527126,42.80381394,192.93,192.92,0.0001]
[1739372527331,33.91380853,192.89,192.87,0.03]
[1739372527627,62.28551394,192.89,192.87,0.03]
[1739372528513,62.16002394,192.89,192.87,0.03]
[1739372528908,0.25098,192.89,192.87,0.03]
[1739372529200,28.37170541,192.89,192.87,0.03]
[1739372529600,13.91380853,192.89,192.87,0.03]
[1739372529958,13.91380853,192.88,192.87,0.0001]
[1739372530440,33.91380853,192.86,192.85,0.0001]
[1739372530615,80.1606421,192.86,192.85,0.0001]
[1739372530930,80.6791421,192.86,192.85,0.0001]
[1739372531319,81.62563213,192.86,192.85,0.0001]
[1739372532024,81.62563213,192.86,192.82,0.063]
[1739372532025,0.50196,192.81,192.8,0.03]
[1739372532220,60.1606421,192.81,192.8,0.03]
[1739372532598,60.0351521,192.81,192.8,0.03]
[1739372533002,60.5537521,192.81,192.8,0.03]
[1739372533218,60.6792421,192.81,192.8,0.03]
[1739372533399,13.91380853,192.8,192.79,0.063]
[1739372533620,107.3539657,192.8,192.79,0.0001]
[1739372533826,20.37647,192.73,192.72,0.063]
[1739372534055,80.0351521,192.73,192.72,0.063]
[1739372534559,20.37647,192.73,192.72,0.063]
[1739372534728,60.0351521,192.73,192.72,0.063]
[1739372535058,61.7225421,192.73,192.72,0.063]
[1739372535414,62.2413421,192.73,192.72,0.063]
[1739372535854,62.2413421,192.73,192.65,0.34820911]
[1739372535855,20.37647,192.66,192.65,0.34820911]
[1739372536139,80.0351521,192.66,192.65,0.34820911]
[1739372536653,0.25098,192.66,192.65,0.34820911]
[1739372537021,20.0,192.67,192.65,0.34820911]
[1739372537217,0.12549,192.69,192.65,0.34820911]
[1739372537414,0.25098,192.69,192.65,0.34820911]
[1739372537614,0.94649003,192.73,192.67,46.24683357]
[1739372537819,46.76553357,192.76,192.69,46.24683357]
[1739372538040,46.24683357,192.76,192.7,46.24683357]
[1739372538222,70.67343833,192.72,192.7,46.24683357]
[1739372538542,70.67343833,192.72,192.71,46.24683357]
[1739372538864,70.67343833,192.72,192.71,47.24683357]
[1739372539021,57.90184651,192.72,192.71,52.56142357]
[1739372539333,24.07116411,192.86,192.76,1.0]
[1739372539543,24.07116411,192.86,192.82,46.24683357]
[1739372539731,20.0,192.86,192.81,46.24683357]
[1739372539947,13.53733853,192.85,192.8,46.24683357]
[1739372540233,48.8903252,192.89,192.73,46.24683357]
[1739372540234,0.25098,192.8,192.73,46.24683357]
[1739372540441,0.12549,192.78,192.74,46.24683357]
[1739372540646,0.12549,192.78,192.73,46.24683357]
[1739372540945,0.25098,192.78,192.73,46.24683357]
[1739372541150,46.24683357,192.83,192.76,46.24683357]
[1739372541330,46.24683357,192.84,192.77,46.24683357]
[1739372541647,20.0,192.81,192.77,46.24683357]
[1739372542149,46.24683357,192.82,192.76,46.24683357]
[1739372542336,46.24683357,192.83,192.76,46.24683357]
[1739372542533,0.25098,192.83,192.77,46.24683357]
[1739372542722,46.24683357,192.89,192.82,46.24683357]
[1739372542925,1.6444,192.94,192.75,1.0]
[1739372542926,2.1626,192.94,192.81,20.0]
[1739372543125,1.6444,192.94,192.82,6.1861]
[1739372543448,0.5181,192.99,192.86,1.0]
[1739372543655,1.6039,193.0,192.9,1.0]
[1739372543820,1.6039,193.0,192.97,46.24683357]
[1739372544015,1.6039,193.0,192.9,47.24683357]
[1739372544016,1.6039,193.0,192.95,46.24683357]
[1739372544235,1.6039,193.0,192.86,20.0]
[1739372544236,46.24683357,192.99,192.92,46.24683357]
[1739372544423,0.25098,192.97,192.92,46.24683357]
[1739372544631,0.12549,192.98,192.94,46.24683357]
[1739372544828,0.12549,192.98,192.86,23.08851848]
[1739372544829,1.6039,193.0,192.88,1.0]
[1739372545035,0.518,193.04,192.91,1.0]
[1739372545267,0.518,193.04,192.91,2.0881299]
[1739372545545,1.5791,193.07,192.95,1.0]
[1739372545719,0.063,193.11,193.04,46.24683357]
[1739372546743,0.063,193.11,192.95,1.0]
[1739372546948,0.25098,193.08,193.03,46.24683357]
[1739372547133,20.0,193.07,193.03,46.24683357]
[1739372547336,0.25098,193.06,193.02,46.24683357]
[1739372547520,46.49781357,193.06,192.99,46.24683357]
[1739372547723,46.49781357,193.04,192.98,46.24683357]
[1739372548043,46.49781357,193.04,192.99,46.24683357]
[1739372548044,0.25098,193.04,192.99,46.24683357]
[1739372548451,20.0,193.04,193.01,46.24683357]
[1739372548750,0.063,193.05,193.03,46.24683357]
[1739372548951,0.063,193.05,193.04,46.24683357]
[1739372550163,0.063,193.05,193.04,48.33438083]
[1739372550365,0.063,193.11,193.08,0.12549]
[1739372550523,0.063,193.11,193.1,46.37232357]
[1739372551156,0.063,193.11,193.1,51.42543357]
[1739372551361,0.063,193.11,193.1,46.24683357]
[1739372552060,0.063,193.11,193.1,94.70644623]
[1739372552266,0.063,193.11,193.1,109.24378476]
[1739372552552,0.063,193.11,193.1,108.15649567]
[1739372552754,0.063,193.11,193.1,92.61915714]
[1739372553051,0.063,193.11,193.1,46.24683357]
[1739372553432,0.063,193.11,193.1,46.37232357]
[1739372553646,0.063,193.11,193.1,93.70649119]
[1739372554854,0.063,193.11,193.1,46.24683357]
[1739372555046,0.063,193.11,193.09,46.24683357]
[1739372555356,0.063,193.11,193.05,5.1797]
[1739372555357,0.063,193.11,193.08,46.24683357]
[1739372555738,0.063,193.11,193.06,46.24683357]
[1739372555933,0.063,193.11,193.09,46.24683357]
[1739372556258,0.063,193.11,193.1,46.24683357]
[1739372556466,0.063,193.11,193.08,46.24683357]
[1739372556760,0.31398,193.11,193.06,46.24683357]
[1739372556928,46.56081357,193.11,193.05,46.24683357]
[1739372557134,20.0,193.09,193.07,46.24683357]
[1739372557631,20.0,193.09,193.04,46.24683357]
[1739372558036,20.0,193.09,193.05,46.24683357]
[1739372558336,20.25098,193.08,193.04,46.24683357]
[1739372558540,20.25098,193.08,193.0,46.24683357]
[1739372558541,20.0,193.04,193.0,46.24683357]
[1739372558742,20.0,193.0,192.93,5.1829]
[1739372559141,20.0,192.99,192.91,66.8235]
[1739372559348,20.0,192.99,192.95,46.24683357]
[1739372559660,20.0,192.99,192.96,46.24683357]
[1739372559994,20.0,192.99,192.91,66.8235]
[1739372559995,20.0,192.99,192.94,46.24683357]
[1739372560136,0.25098,192.98,192.93,46.24683357]
[1739372560568,0.518,193.02,192.97,46.24683357]
[1739372560738,0.518,193.04,192.99,46.24683357]
[1739372561072,0.518,193.04,192.92,1.08836606]
[1739372561073,0.5179,193.08,193.02,46.24683357]
[1739372561250,0.5179,193.08,192.95,0.12549]
[1739372561435,0.5179,193.08,192.97,0.12549]
[1739372561642,2.0777,193.1,192.98,1.08776649]
[1739372561841,20.0,193.07,192.97,1.21324461]
[1739372562040,0.25098,193.06,192.95,5.1826]
[1739372562273,20.0,193.03,193.0,46.24683357]
[1739372562456,20.0,193.0,192.96,46.24683357]
[1739372562774,0.25098,193.01,192.96,46.24683357]
[1739372562946,46.49781357,193.01,192.94,46.24683357]
[1739372563147,20.0,192.98,192.94,46.24683357]
[1739372563562,0.12549,193.02,192.97,46.24683357]
[1739372563768,46.24683357,193.05,192.99,46.24683357]
[1739372563972,20.0,193.02,192.99,46.24683357]
[1739372564688,20.0,193.02,192.98,46.24683357]
[1739372564901,20.0,193.02,192.92,1.2135343]
[1739372564902,13.66282853,193.0,192.99,0.03]
[1739372565065,33.66282853,193.0,192.99,0.03]
[1739372565264,0.518,193.04,192.99,0.03]
[1739372565565,0.25098,193.03,192.99,0.03]
[1739372566083,20.0,193.02,192.99,0.03]
[1739372566291,0.25098,193.01,192.99,0.03]
[1739372566460,46.24683357,193.08,193.0,46.24683357]
[1739372566660,0.5178,193.09,193.03,46.24683357]
[1739372566883,0.5178,193.09,193.05,46.24683357]
[1739372567067,0.5178,193.09,193.08,46.24683357]
[1739372567273,0.5178,193.09,193.0,46.24683357]
[1739372567584,1.81088,193.1,193.07,46.24683357]
[1739372567797,1.5599,193.1,193.08,46.24683357]
[1739372568094,0.063,193.11,193.08,46.24683357]
[1739372568276,0.063,193.11,193.09,46.24683357]
[1739372568970,20.063,193.11,193.08,46.24683357]
[1739372569178,0.25098,193.1,193.07,46.24683357]
[1739372569380,0.25098,193.1,193.05,46.24683357]
[1739372569773,20.0,193.09,193.05,46.24683357]
[1739372569998,20.25098,193.08,193.05,46.24683357]
[1739372570181,20.0,193.08,193.05,46.24683357]
[1739372570889,0.25098,193.06,192.99,0.03]
[1739372571301,20.518,193.05,192.99,0.03]
[1739372571710,0.25098,193.0,192.99,0.03]
[1739372572004,0.25098,193.0,192.8,15.6]
[1739372572005,0.25098,192.96,192.88,51.43123357]
[1739372572218,20.0,192.91,192.81,1.0885795]
[1739372572375,46.24683357,192.9,192.83,46.24683357]
[1739372572580,66.24683357,192.89,192.83,46.24683357]
[1739372572775,66.24683357,192.89,192.8,5.1865]
[1739372572776,13.66282853,192.88,192.82,46.24683357]
[1739372573101,0.25098,192.85,192.8,46.24683357]
[1739372573303,0.25098,192.86,192.81,46.24683357]
[1739372573603,60.4281621,192.86,192.8,46.24683357]
[1739372573804,20.0,192.85,192.81,46.24683357]
[1739372574382,20.0,192.85,192.8,46.24683357]
[1739372574582,20.0,192.84,192.8,46.24683357]
[1739372574804,46.49781357,192.83,192.79,0.03]
[1739372574984,46.24683357,192.83,192.79,0.03]
[1739372575183,20.0,192.81,192.79,46.27683357]
[1739372575394,20.0,192.81,192.79,0.03]
[1739372575608,20.5186,192.81,192.79,0.03]
[1739372575909,60.0351521,192.8,192.79,0.03]
[1739372576495,60.0351521,192.8,192.71,46.24683357]
[1739372576690,13.66282853,192.76,192.7,46.24683357]
[1739372577304,14.18152853,192.76,192.7,46.24683357]
[1739372577686,20.0,192.73,192.7,46.24683357]
[1739372578009,20.0,192.73,192.69,46.24683357]
[1739372578302,20.0,192.72,192.68,46.24683357]
[1739372578503,20.0,192.72,192.66,46.24683357]
[1739372578504,0.25098,192.72,192.66,46.24683357]
[1739372578689,20.0,192.69,192.65,46.59504268]
[1739372578893,1.6523,192.94,192.78,1.0]
[1739372579089,1.6523,192.94,192.7,20.0]
[1739372579090,1.6523,192.94,192.85,0.12549]
[1739372579297,1.6523,192.94,192.86,5.1851]
[1739372579498,1.6523,192.94,192.87,0.12549]
[1739372579706,1.6523,193.04,192.88,1.0]
[1739372579911,1.6523,193.04,192.92,0.12549]
[1739372580207,1.6523,193.04,193.03,46.24683357]
[1739372581183,8.00204849,193.06,193.03,46.24683357]
[1739372581411,8.00204849,193.06,193.02,5.1807]
[1739372581705,8.00204849,193.06,193.0,46.24683357]
[1739372581919,8.00204849,193.06,193.0,51.42803357]
[1739372582089,8.00204849,193.06,193.05,46.24683357]
[1739372582911,0.063,193.08,193.05,46.24683357]
[1739372583088,0.063,193.08,193.07,46.24683357]
[1739372583287,0.063,193.08,193.07,92.49366714]
[1739372583524,0.063,193.08,193.07,46.24683357]
[1739372584011,0.43947,193.08,193.07,46.24683357]
[1739372584183,0.063,193.08,193.07,46.24683357]
[1739372584904,0.063,193.08,193.07,92.49366714]
[1739372585316,0.063,193.11,193.08,5.1792]
[1739372585522,0.063,193.11,193.1,92.49366714]
[1739372585818,0.063,193.18,193.1,92.49366714]
[1739372586011,0.063,193.18,193.17,46.24683357]
[1739372586608,0.063,193.18,193.17,92.49366714]
[1739372586806,0.063,193.18,193.17,46.24683357]
[1739372587030,0.31398,193.18,193.17,46.24683357]
[1739372587322,20.0,193.17,193.16,46.24683357]
[1739372587542,33.66282853,193.17,193.16,46.24683357]
[1739372587695,0.063,193.18,193.16,46.24683357]
[1739372587888,0.063,193.18,193.17,46.24683357]
[1739372588622,20.063,193.18,193.15,46.24683357]
[1739372588801,20.063,193.18,193.0,47.24683357]
[1739372588802,0.37647,193.14,193.12,46.24683357]
[1739372588993,13.41184853,193.13,193.01,1.08757796]
[1739372589198,13.41184853,193.13,193.12,46.24683357]
[1739372589424,0.12549,193.13,193.12,46.24683357]
[1739372589825,33.91380853,193.13,193.11,46.24683357]
[1739372590030,0.37647,193.1,193.09,46.24683357]
[1739372590328,33.78831853,193.07,193.06,46.24683357]
[1739372590896,33.78831853,193.07,193.04,46.24683357]
[1739372591428,33.78831853,193.01,193.0,46.24683357]
[1739372591726,33.66282853,193.01,193.0,46.24683357]
[1739372592030,21.5292,193.05,193.0,46.24683357]
[1739372592188,21.5292,193.05,193.04,46.24683357]
[1739372592594,35.31751853,193.05,193.04,46.24683357]
[1739372593118,0.25098,193.03,193.02,46.24683357]
[1739372593332,1.5292,193.05,193.02,46.24683357]
[1739372593626,1.5292,193.05,193.04,46.24683357]
[1739372593838,21.78018,193.05,193.04,46.24683357]
[1739372594230,1.78018,193.05,193.04,46.24683357]
[1739372594433,54.32443357,193.13,193.04,46.24683357]
[1739372594637,33.78831853,193.09,193.07,46.24683357]
[1739372594836,33.78831853,193.09,193.08,46.24683357]
[1739372595026,0.25098,193.09,193.08,46.24683357]
[1739372595223,1.6593,193.13,193.08,46.24683357]
[1739372595441,1.6593,193.13,193.1,46.24683357]
[1739372595752,13.78831853,193.12,193.08,46.24683357]
[1739372595945,13.41184853,193.11,193.1,46.24683357]
[1739372596245,1.6426,193.21,193.1,46.24683357]
[1739372596541,0.12549,193.16,193.15,46.24683357]
[1739372596742,0.12549,193.16,193.05,20.0]
[1739372597044,0.25098,193.14,193.1,46.24683357]
[1739372597219,0.25098,193.13,193.09,51.42573357]
[1739372597418,0.25098,193.13,193.1,46.24683357]
[1739372597651,20.25098,193.1,193.06,46.24683357]
[1739372597824,13.53733853,193.15,193.05,46.24683357]
[1739372597825,0.25098,193.07,193.05,46.24683357]
[1739372598032,0.25098,193.07,193.03,5.1805]
[1739372598231,0.12549,193.06,193.03,5.1805]
[1739372598430,0.5177,193.13,193.03,5.1805]
[1739372598724,13.41184853,193.11,193.03,5.1805]
[1739372598944,13.66282853,193.07,193.03,5.1805]
[1739372599149,0.12549,193.04,193.01,51.42763357]
[1739372599519,46.24683357,193.14,193.03,46.24683357]
[1739372599723,46.76453357,193.15,193.08,46.24683357]
[1739372599956,46.76453357,193.15,193.01,19.22113546]
[1739372599957,33.78831853,193.11,193.01,19.22113546]
[1739372600120,1.0,193.1,192.94,5.1829]
[1739372600445,13.66282853,192.98,192.94,5.1829]
[1739372600851,0.25098,192.96,192.88,5.1845]
[1739372601053,0.12549,192.95,192.89,46.24683357]
[1739372601353,20.25098,192.94,192.9,46.24683357]
[1739372601519,20.25098,192.94,192.89,46.24683357]
[1739372601520,20.0,192.93,192.89,46.24683357]
[1739372601720,33.78831853,192.92,192.88,46.24683357]
[1739372602055,33.78831853,192.92,192.89,46.24683357]
[1739372602234,33.78831853,192.92,192.88,46.24683357]
[1739372602562,33.66282853,192.92,192.88,46.24683357]
[1739372602747,33.66282853,192.92,192.86,61.64]
[1739372602748,46.24683357,193.0,192.91,46.24683357]
[1739372602945,46.76483357,193.02,192.95,46.24683357]
[1739372603152,46.76483357,193.02,192.87,1.08846848]
[1739372603153,6.151,193.03,192.88,0.12549]
[1739372603346,6.151,193.03,192.98,46.24683357]
[1739372603517,1.6533,193.08,193.01,46.24683357]
[1739372603721,1.6533,193.08,193.02,46.24683357]
[1739372603943,33.41184853,193.03,193.02,46.24683357]
[1739372604143,0.12549,193.02,193.01,46.24683357]
[1739372604447,0.25098,193.0,192.98,46.24683357]
[1739372604632,0.25098,193.0,192.91,14.04706607]
[1739372604633,13.66282853,192.97,192.88,5.1845]
[1739372604827,13.66282853,192.97,192.95,46.24683357]
[1739372605230,2.0,193.07,192.88,5.1845]
[1739372605231,46.24683357,193.06,192.96,46.24683357]
[1739372605533,2.1712,193.08,193.03,46.24683357]
[1739372605843,20.12549,193.04,193.0,46.24683357]
[1739372606147,2.1712,193.08,193.0,46.24683357]
[1739372606346,2.1712,193.08,192.94,20.12549]
[1739372606546,46.24683357,193.07,192.94,25.1829]
[1739372606743,33.66282853,193.03,193.0,46.24683357]
[1739372607045,33.66282853,193.03,192.98,46.24683357]
[1739372607451,0.12549,193.02,192.96,46.24683357]
[1739372607628,0.12549,193.02,192.94,5.1829]
[1739372607629,20.25098,192.97,192.93,46.24683357]
[1739372607830,20.0,192.93,192.92,46.24683357]
[1739372608036,20.25098,192.91,192.86,61.64]
[1739372608225,20.25098,192.91,192.8,46.24683357]
[1739372608226,0.25098,192.89,192.8,46.24683357]
[1739372608624,0.25098,192.89,192.81,5.1864]
[1739372609173,20.0,192.88,192.87,46.24683357]
[1739372609677,20.25098,192.88,192.86,46.24683357]
[1739372609851,20.25098,192.88,192.87,46.24683357]
[1739372610253,20.25098,192.88,192.85,46.27683357]
[1739372610552,20.25098,192.88,192.86,46.24683357]
[1739372610870,20.25098,192.88,192.87,46.24683357]
[1739372611370,2.0644,192.92,192.87,46.24683357]
[1739372611583,13.66282853,192.89,192.87,46.24683357]
[1739372611955,22.0644,192.92,192.88,46.24683357]
[1739372612173,22.0644,192.92,192.9,46.24683357]
[1739372612349,20.0,192.89,192.86,46.24683357]
[1739372612577,0.12549,192.87,192.85,0.03]
[1739372612886,33.66282853,192.8,192.79,0.03]
[1739372613177,80.0351521,192.8,192.79,0.03]
[1739372613482,80.1606421,192.8,192.79,0.03]
[1739372613778,80.1606421,192.8,192.75,0.03]
[1739372613779,80.0351521,192.76,192.75,0.03]
[1739372613945,33.66282853,192.76,192.75,0.03]
[1739372614150,20.12549,192.76,192.75,0.03]
[1739372614350,0.5186,192.79,192.75,0.03]
[1739372614551,0.25098,192.78,192.75,0.03]
[1739372614757,0.12549,192.76,192.75,0.03]
[1739372615068,0.5186,192.79,192.75,46.27683357]
[1739372615283,0.5186,192.79,192.78,46.24683357]
[1739372615284,14.18142853,192.79,192.78,46.24683357]
[1739372615671,1.5908,192.8,192.78,46.24683357]
[1739372615981,13.66282853,192.79,192.76,46.24683357]
[1739372616283,1.5908,192.8,192.75,0.03]
[1739372616284,20.12549,192.76,192.75,0.03]
[1739372616480,2.1094,192.8,192.75,0.03]
[1739372616657,48.35623357,192.8,192.75,0.03]
[1739372616852,13.66282853,192.76,192.75,0.03]
[1739372617053,13.78831853,192.76,192.75,0.03]
[1739372617561,14.18152853,192.76,192.75,0.03]
[1739372617783,2.8874,192.8,192.75,46.27683357]
[1739372617784,20.5187,192.78,192.75,46.27683357]
[1739372618073,20.0,192.78,192.75,46.27683357]
[1739372618276,2.1094,192.8,192.76,46.24683357]
[1739372618451,13.66282853,192.79,192.75,46.27683357]
[1739372618650,0.12549,192.79,192.78,46.24683357]
[1739372619053,7.5134,192.86,192.78,46.24683357]
[1739372619250,0.5184,192.87,192.84,46.24683357]
[1739372619455,0.5184,192.87,192.75,20.03]
[1739372619761,13.66282853,192.82,192.79,46.24683357]
[1739372619961,20.25098,192.76,192.75,0.03]
[1739372620161,33.66282853,192.76,192.75,0.03]
[1739372621065,34.18152853,192.76,192.75,0.03]
[1739372621286,0.12549,192.76,192.75,0.03]
[1739372621494,33.53733853,192.76,192.75,0.03]
[1739372621654,34.05603853,192.76,192.75,0.03]
[1739372622071,0.12549,192.76,192.75,0.03]
[1739372622287,0.12549,192.76,192.75,46.27683357]
[1739372622481,0.5186,192.81,192.75,46.27683357]
[1739372622671,0.5186,192.81,192.78,46.24683357]
[1739372622875,0.12549,192.8,192.79,46.24683357]
[1739372623180,46.24683357,192.87,192.79,46.24683357]
[1739372623481,46.24683357,192.87,192.75,0.03]
[1739372623482,0.5184,192.87,192.83,46.24683357]
[1739372623780,13.78831853,192.86,192.83,46.24683357]
[1739372623988,33.41184853,192.84,192.83,46.24683357]
[1739372624177,20.0,192.84,192.83,46.24683357]
[1739372624353,0.5184,192.87,192.83,46.24683357]
[1739372624555,13.66282853,192.86,192.82,46.24683357]
[1739372624769,33.66282853,192.83,192.8,46.24683357]
[1739372624974,0.12549,192.82,192.75,5.218]
[1739372625185,0.5184,192.87,192.76,1.08905794]
[1739372625386,2.0791,192.88,192.77,0.12549]
[1739372625678,20.0,192.86,192.78,1.08889399]
[1739372626180,1.5607,192.88,192.85,46.24683357]
[1739372626389,1.5607,192.88,192.87,46.24683357]
[1739372626563,0.15,192.97,192.83,0.03]
[1739372626564,1.8138,192.96,192.83,0.03]
[1739372626771,13.91380853,192.95,192.83,0.03]
[1739372626966,13.66282853,192.91,192.83,0.03]
[1739372627181,0.12549,192.87,192.83,0.03]
[1739372627488,33.66282853,192.84,192.83,0.03]
[1739372628493,0.25098,192.79,192.75,0.03]
[1739372628789,20.12549,192.76,192.75,0.03]
[1739372628998,0.12549,192.76,192.75,46.27683357]
[1739372629169,1.517,192.82,192.75,46.27683357]
[1739372629496,1.517,192.82,192.79,46.24683357]
[1739372629800,21.517,192.82,192.78,46.24683357]
[1739372629998,1.517,192.82,192.81,46.24683357]
[1739372630282,1.64249,192.82,192.81,46.24683357]
[1739372630788,1.64249,192.82,192.8,46.24683357]
[1739372631160,20.12549,192.81,192.77,46.24683357]
[1739372631395,0.12549,192.79,192.76,46.24683357]
[1739372631595,0.25098,192.8,192.76,46.24683357]
[1739372631596,20.0,192.8,192.76,46.24683357]
[1739372631881,13.66282853,192.79,192.76,46.24683357]
[1739372632077,13.66282853,192.79,192.77,46.24683357]
[1739372632280,0.12549,192.79,192.77,46.24683357]